[Event "Seniors-LEM-65 Sachsen-Anhalt 2024"]
[Site "Magdeburg"]
[Date "2024.07.04"]
[Round "4.29"]
[White "Schwis, Joachim"]
[Black "Kramell, Ralph Friedrich Kurt"]
[Result "1-0"]
[ECO "E07"]
[WhiteElo "1950"]
[BlackElo "1824"]
[Annotator "NA RC"]
[PlyCount "59"]
[EventDate "2024.06.25"]
[EventType "swiss"]
[EventCountry "GER"]
[SourceTitle "playchess.com"]
[Source "ChessBase"]
[SourceQuality "1"]
[TimeControl "40/5400+30:1800+30"]

1. c4 {[%emt 0:00:04]} e6 {[%emt 0:01:37]} 2. Nf3 {[%emt 0:00:22]} Nf6 {[%emt 0:01:52]} 3. g3 {[%emt 0:00:39]} d5 {[%emt 0:02:20]} 4. b3 {[%emt 0:00:29]} Be7 {[%emt 0:07:40]} 5. Bg2 {[%emt 0:01:35]} c6 {[%emt 0:03:23]} 6. O-O {[%emt 0:00:16]} O-O {[%emt 0:00:08]} 7. Bb2 {[%emt 0:00:39]} Nbd7 {[%emt 0:00:41]} 8. d4 {[%emt 0:00:24]} c5 {[%emt 0:09:08]} 9. e3 {[%emt 0:07:29]} dxc4 {[%emt 0:07:15]} 10. bxc4 {[%emt 0:00:11]} Rb8 {[%emt 0:00:27]} 11. Nc3 {[%emt 0:03:14]} b6 {[%emt 0:05:04]} 12. Re1 {[%emt 0:09:10]} Bb7 {[%emt 0:07:23]} 13. d5 {[%emt 0:09:23]} exd5 {[%emt 0:05:09]} 14. cxd5 {[%emt 0:06:30]} Ne8 $16 {[%emt 0:04:58]} 15. e4 {[%emt 0:00:43]} Nd6 {[%emt 0:08:59]} 16. Bf1 {[%emt 0:05:27]} f6 {[%emt 0:03:43]} 17. Nd2 {[%emt 0:03:00]} a6 {[%emt 0:04:09]} 18. a4 {[%emt 0:00:33]} Rf7 {[%emt 0:00:27]} 19. f4 {[%emt 0:05:34]} Qf8 {[%emt 0:04:21]} 20. Bh3 {[%emt 0:09:07]} Bc8 {[%emt 0:04:28]} 21. Be6 {[%emt 0:01:27]} Kh8 {[%emt 0:02:17]} 22. Qe2 {[%emt 0:04:11]} Bd8 {[%emt 0:01:57]} 23. e5 {[%emt 0:08:09]} fxe5 {[%emt 0:01:33]} 24. fxe5 {[%emt 0:00:38]} Nxe5 {[%emt 0:05:08]} 25. Nce4 {[%emt 0:06:18]} Nf3+ {[%emt 0:01:53]} 26. Nxf3 {[%emt 0:01:01]} Rxf3 {[%emt 0:00:25]} 27. Nxd6 {[%emt 0:00:51]} Bxe6 {[%emt 0:01:34]} 28. dxe6 {[%emt 0:00:51]} Be7 {[%emt 0:00:22]} 29. Nf7+ {[%emt 0:00:15]} Kg8 {[%emt 0:00:01]} 30. Qxf3 {[%emt 0:00:23]} 1-0

[Event "Seniors-LEM-65 Sachsen-Anhalt 2024"]
[Site "Magdeburg"]
[Date "2024.07.04"]
[Round "4.30"]
[White "Jacob, Barbara"]
[Black "Krien, Hartmut"]
[Result "0-1"]
[ECO "D04"]
[WhiteElo "1824"]
[BlackElo "1928"]
[Annotator "NA RC"]
[PlyCount "48"]
[EventDate "2024.06.25"]
[EventType "swiss"]
[EventCountry "GER"]
[SourceTitle "playchess.com"]
[Source "ChessBase"]
[SourceQuality "1"]
[TimeControl "40/5400+30:1800+30"]

1. b3 {[%emt 0:00:07]} Nf6 {[%emt 0:01:15]} 2. Bb2 {[%emt 0:00:06]} g6 {[%emt 0:00:11]} 3. e3 {[%emt 0:00:41]} Bg7 {[%emt 0:00:25]} 4. d4 {[%emt 0:00:54]} O-O {[%emt 0:00:35]} 5. Nf3 {[%emt 0:01:16]} d5 {[%emt 0:02:51]} 6. Be2 {[%emt 0:03:56]} c5 {[%emt 0:04:38]} 7. O-O {[%emt 0:02:03]} b6 {[%emt 0:06:46]} 8. Nbd2 {[%emt 0:03:03]} cxd4 {[%emt 0:05:39]} 9. exd4 {[%emt 0:00:28]} Nc6 {[%emt 0:01:34]} 10. c3 {[%emt 0:04:48]} Bb7 {[%emt 0:03:36]} 11. Re1 {[%emt 0:06:57]} Rc8 {[%emt 0:06:45]} 12. Bd3 {[%emt 0:08:50]} Nd7 {[%emt 0:06:41]} 13. Ba3 {[%emt 0:06:50]} Re8 {[%emt 0:03:01]} 14. Rc1 {[%emt 0:04:41]} e5 {[%emt 0:05:08]} 15. dxe5 {[%emt 0:00:42]} Ndxe5 {[%emt 0:03:59]} 16. Nxe5 {[%emt 0:00:26]} Rxe5 {[%emt 0:02:16]} 17. Nf3 $11 {[%emt 0:01:12]} Re6 {[%emt 0:05:17]} 18. Qd2 {[%emt 0:07:59]} Ne5 {[%emt 0:12:43]} 19. Nxe5 {[%emt 0:11:18]} Bxe5 {[%emt 0:03:10]} 20. g3 {[%emt 0:06:02]} Qf6 {[%emt 0:03:10]} 21. Bb2 {[%emt 0:02:44]} d4 {[%emt 0:02:06]} 22. f4 {[%emt 0:06:03]} dxc3 {[%emt 0:00:51]} 23. Bxc3 {[%emt 0:00:29]} Bxc3 {[%emt 0:00:49]} 24. Rxe6 {[%emt 0:04:31]} fxe6 {[%emt 0:00:26]} 0-1